{"text_format":"1","workbook":"xlsx","n_sheets":1,"sheets":["F4 - Resumen financiero"],"not_rendered":{"charts":0,"images":1,"macros":1,"external_links":0,"defined_names":5,"comments":1,"pivot_tables":0},"unopened":[],"bounds":{"document_bytes":16777216,"sheet_cells":100000,"rows_first":2000,"rows_last":500,"rows_between":2000,"halvings":0,"cell_chars":16384,"cell_head_chars":4096},"cells_cut":0,"cells_raw":0,"read":"whole","date_system":"1900"}

{"sheet":"F4 - Resumen financiero","index":0,"n_rows":120,"n_cols":2,"rows_kept":120,"cut":false,"hidden":false,"merged":[[38,0,38,1],[52,0,52,1],[10,0,10,1],[51,0,51,1],[11,0,11,1],[0,0,0,1],[99,0,99,1],[100,0,100,1],[98,0,98,1],[63,0,63,1],[84,0,84,1],[1,0,1,1],[2,0,2,1],[3,0,3,1],[4,0,4,1],[9,0,9,1],[22,0,22,1],[37,0,37,1],[62,0,62,1],[83,0,83,1],[23,0,23,1],[101,0,101,1],[102,0,102,1],[103,0,103,1],[104,0,104,1],[105,0,105,1],[106,0,106,1],[107,0,107,1],[108,0,108,1],[109,0,109,1],[110,0,110,1],[116,0,116,1],[117,0,117,1],[118,0,118,1],[119,0,119,1],[111,0,111,1],[112,0,112,1],[113,0,113,1],[114,0,114,1],[115,0,115,1]]}
[]
["Superintendencia del Mercado de Valores"]
["EMISORES"]
["Formulario F4 - Resumen financiero"]
[" Version 1.0"]
["Emisor:"]
["Código*:"]
["Fecha de Reporte*:"]
["Fundamento legal: Acuerdo 18-2000."]
["Los campos con asterisco (*) son obligatorios."]
["A.Presentación Aplicable a Emisores del Sector No Financiero."]
["ESTADO DE RESULTADOS"]
["Ventas o Ingresos Totales*",0]
["Margen Operativo*",0]
["Gastos Generales y Administrativos*",0]
["Utilidad o Pérdida Neta*",0]
["Acciones emitidas y en circulación*",0]
["Utilidad o Pérdida por Acción*",0]
["Depreciación y Amortización*",0]
["Utilidad Operativa*",0]
["Gastos Financieros*",0]
["Utilida o Pérdida del Periodo*",0]
[]
["BALANCE GENERAL"]
["Activo Circulante*",0]
["Activos Totales*",0]
["Pasivo Circulante*",0]
["Deuda a Largo Plazo*",0]
["Obligaciones en valores*",0]
["Deuda Total*",0]
["Pasivos Totales*",0]
["Acciones Preferidas*",0]
["Capital Pagado*",0]
["Utilidades o Perdidas Retenidas*",0]
["Patrimonio Total*",0]
["Precio por Acción*",0]
["Dividendo*",0]
[]
["RAZONES FINANCIERAS:"]
["Total de Activos / Total de Pasivos",{"$f":"IFERROR(B26/B31,0)","v":0}]
["Total de Pasivos / Total de Activos",{"$f":"IFERROR(B31/B26,0)","v":0}]
["Dividendo / Acción emitidas y en Circulacion",{"$f":"IFERROR(B37/B17,0)","v":0}]
["Pasivos Totales / Patrimonio",{"$f":"IFERROR(B31/B35,0)","v":0}]
["Deuda Total / Patrimonio",{"$f":"IFERROR(B30/B35,0)","v":0}]
["Capital de Trabajo= Activo Circulante - Pasivo Circulante",{"$f":"IFERROR(B25 - B27,0)","v":0}]
["Razón Corriente = Activo Circulante / Pasivos Circulante",{"$f":"IFERROR(B25/B27,0)","v":0}]
["Utilidad Operativa / Gastos financieros",{"$f":"IFERROR(B20/B21,0)","v":0}]
["Utilidad Neta / Activos Totales",{"$f":"IFERROR(B16/B26,0)","v":0}]
["Utilidad Neta / Capital Pagado",{"$f":"IFERROR(B16/B33,0)","v":0}]
["Utilidad o Pérdida del Período / Patrimonio Total",{"$f":"IFERROR(B22/B35,0)","v":0}]
[]
["B. . Presentación Aplicable a Emisores del Sector Financiero."]
["ESTADO DE RESULTADOS"]
["Ingresos por intereses*",0]
["Ingresos Totales*",0]
["Gastos por intereses*",0]
["Gastos de Operación*",0]
["Utilidad o Pérdida*",0]
["Acciones emitidas y en circulación*",0]
["Utilidad o Pérdida por Acción*",0]
["Utilidad o Pérdida del periodo*",0]
[]
[]
["BALANCE GENERAL"]
["Prestamos *",0]
["Efectivo, efectos de caja y depósitos en bancos *",0]
["Depósito*",0]
["Inversiones*",0]
["Total de Activos*",0]
["Total de Depósitos*",0]
["Deuda Total*",0]
["Pasivos Totales*",0]
["Préstamos Netos*",0]
["Obligaciones en valores*",0]
["Acciones Preferidas*",0]
["Acción Común*",0]
["Capital Pagado *",0]
["Operación y reservas *",0]
["Patrimonio Total *",0]
["Dividendo *",0]
["Morosidad *",0]
["Reserva *",0]
["Cartera Total *",0]
[]
["RAZONES FINANCIERAS:"]
["Total de Activos / Total de Pasivos",{"$f":"IFERROR(B69/B72,0)","v":0}]
["Total de Pasivos / Total de Activos",{"$f":"IFERROR(B72/B69,0)","v":0}]
["Dividendo/Acciónes Emitidas y en Circulacion",{"$f":"IFERROR(B80/B59,0)","v":0}]
["Efectivo + Depósitos + Inversiones /Total de Depósitos",{"$f":"IFERROR((B66+B68)/B70,0)","v":0}]
["Efectivo + Depósitos + Inversiones /Total de Activos",{"$f":"IFERROR((B66+B68)/B69,0)","v":0}]
["Deuda Total + Depósito / Patrimonio",{"$f":"IFERROR((B71+B70)/B79,0)","v":0}]
["Préstamos / Total de Activos",{"$f":"IFERROR(B65/B69,0)","v":0}]
["Préstamos Netos / Total de Depósitos",{"$f":"IFERROR(B73/B70,0)","v":0}]
["Gastos de Operación / Ingresos Totales",{"$f":"IFERROR(B57/B55,0)","v":0}]
["Morosidad /Reservas",{"$f":"IFERROR(B81/B82,0)","v":0}]
["Morosidad /Cartera Total",{"$f":"IFERROR(B81/B83,0)","v":0}]
["Utilidad o Pérdida del Período / Patrimonio Total",{"$f":"IFERROR(B61/B79,0)","v":0}]
[]
["Explicación del Resumen Financiero"]
[]
[" "]
[" "]
[" "]
[" "]
[" "]
[" "]
[" "]
[" "]
[" "]
[" "]
[" "]
[" "]
[" "]
[" "]
[" "]
[" "]
[" "]
[" "]
[" "]
[" "]